fUSD/lending_fUSD_20250215
["ID","MTS","AMOUNT","RATE_DAILY","PERIOD"]
[353156878,1739614273479,-500.0,0.00013596,2]
[353156879,1739614273490,-500.0,0.00013596,2]
[353156880,1739614273499,-500.0,0.00013596,2]
[353156881,1739614273509,-590.41,0.00013596,2]
[353156882,1739614273520,-500.0,0.00013596,2]
[353156883,1739614273529,-500.0,0.00013596,2]
[353156884,1739614273540,-2500.0,0.000136,2]
[353156885,1739614273549,-512.778603,0.000136,2]
[353156886,1739614273702,-280.0,0.0001361,2]
[353156887,1739614273712,-202.0,0.0001361,2]
[353156888,1739614273722,-1314.866743,0.00013614,2]
[353156889,1739614273731,-500.0,0.00013614,2]
[353156890,1739614273741,-500.0,0.00013614,2]
[353156891,1739614273751,-194.77,0.00013614,2]
[353156892,1739614273760,-500.0,0.00013614,2]
[353156893,1739614273770,-500.0,0.00013614,2]
[353156894,1739614273780,-1024.26,0.00013614,2]
[353156895,1739614273789,-500.0,0.00013614,2]
[353156896,1739614273799,-1265.427403,0.00013614,2]
[353156897,1739614273811,-500.0,0.00013614,2]
[353156898,1739614273821,-1365.1,0.00013614,2]
[353156899,1739614273831,-627.95,0.00013614,2]
[353156900,1739614273842,-500.0,0.00013614,2]
[353156901,1739614273853,-507.63,0.00013614,2]
[353156902,1739614273862,-500.0,0.00013614,2]
[353156903,1739614273872,-500.0,0.00013614,2]
[353156904,1739614273881,-500.0,0.00013614,2]
[353156905,1739614273892,-554.84,0.00013614,2]
[353156906,1739614273902,-500.0,0.00013614,2]
[353156907,1739614273913,-1011.9,0.00013614,2]
[353156908,1739614273923,-862.31,0.00013614,2]
[353156909,1739614273933,-500.0,0.00013614,2]
[353156910,1739614273943,-555.17,0.00013614,2]
[353156911,1739614273953,-639.43,0.00013614,2]
[353156912,1739614273962,-500.0,0.00013614,2]
[353156913,1739614273972,-500.0,0.00013614,2]
[353156914,1739614273982,-500.0,0.00013614,2]
[353156915,1739614273992,-602.18,0.00013614,2]
[353156916,1739614274002,-496.72,0.00013614,2]
[353156917,1739614274014,-500.0,0.00013614,2]
[353156918,1739614274023,-990.22,0.00013614,2]
[353156919,1739614274033,-500.0,0.00013614,2]
[353156920,1739614274043,-500.0,0.00013614,2]
[353156921,1739614274053,-500.0,0.00013614,2]
[353156922,1739614274062,-528.12,0.00013614,2]
[353156923,1739614274072,-500.0,0.00013614,2]
[353156924,1739614274081,-750.83,0.00013614,2]
[353156925,1739614274091,-588.39,0.00013614,2]
[353156926,1739614274100,-500.0,0.00013614,2]
[353156927,1739614274110,-500.0,0.00013614,2]
[353156928,1739614274119,-500.0,0.00013614,2]
[353156929,1739614274129,-1454.86,0.00013614,2]
[353156930,1739614274138,-500.0,0.00013614,2]
[353156931,1739614274148,-239.43805,0.00013614,2]
[353156932,1739614274158,-500.0,0.00013614,2]
[353156933,1739614274167,-500.0,0.00013615,2]
[353156934,1739614274176,-500.0,0.00013615,2]
[353156935,1739614274186,-500.0,0.00013615,2]
[353156936,1739614274196,-500.0,0.00013615,2]
[353156937,1739614274205,-288.33,0.00013615,2]
[353156938,1739614274214,-500.0,0.00013615,2]
[353156939,1739614274223,-363.91803722,0.00013615,2]
[353156940,1739614274233,-429.24,0.00013615,2]
[353156941,1739614274243,-1003.21,0.00013615,2]
[353156942,1739614274252,-500.0,0.00013615,2]
[353156943,1739614274262,-500.0,0.00013615,2]
[353156944,1739614274271,-500.0,0.00013615,2]
[353156945,1739614274281,-636.66,0.00013615,2]
[353156946,1739614274290,-541.55,0.00013615,2]
[353156947,1739614274300,-1044.13,0.00013615,2]
[353156948,1739614274310,-2360.06,0.00013615,2]
[353156949,1739614274319,-560.21,0.00013615,2]
[353156950,1739614274329,-748.23,0.00013615,2]
[353156951,1739614274339,-500.0,0.00013615,2]
[353156952,1739614274348,-510.98,0.00013615,2]
[353156953,1739614274359,-500.0,0.00013615,2]
[353156954,1739614274368,-791.07,0.00013615,2]
[353156955,1739614274378,-500.0,0.00013615,2]
[353156956,1739614274388,-628.58,0.00013615,2]
[353156957,1739614274398,-500.0,0.00013615,2]
[353156958,1739614274408,-861.68,0.00013615,2]
[353156959,1739614274419,-500.0,0.00013615,2]
[353156960,1739614274428,-997.83,0.00013615,2]
[353156961,1739614274438,-655.17,0.00013615,2]
[353156962,1739614274450,-500.0,0.00013615,2]
[353156963,1739614274460,-736.8,0.00013615,2]
[353156964,1739614274469,-500.0,0.00013615,2]
[353156965,1739614274479,-500.0,0.00013615,2]
[353156966,1739614274489,-500.0,0.00013615,2]
[353156967,1739614274500,-500.0,0.00013615,2]
[353156968,1739614274510,-693.79,0.00013615,2]
[353156969,1739614274519,-1153.16,0.00013615,2]
[353156970,1739614274529,-500.0,0.00013615,2]
[353156971,1739614274539,-500.0,0.00013615,2]
[353156972,1739614274549,-500.0,0.00013615,2]
[353156973,1739614274559,-587.83,0.00013615,2]
[353156974,1739614274569,-500.0,0.00013642,2]
[353156975,1739614274579,-500.0,0.00013642,2]
[353156976,1739614274588,-500.0,0.00013642,2]
[353156977,1739614274598,-1232.06,0.00013642,2]
[353156978,1739614274607,-1232.06,0.00013642,2]
[353156979,1739614274616,-1232.06,0.00013642,2]
[353156980,1739614274626,-700.0,0.0001367,2]
[353156981,1739614274635,-1392.51,0.00013678,2]
[353156982,1739614274645,-472.68,0.00013678,2]
[353156983,1739614274655,-500.0,0.00013678,2]
[353156984,1739614274665,-500.0,0.00013678,2]
[353156985,1739614274675,-500.0,0.00013678,2]
[353156986,1739614274684,-500.0,0.00013678,2]
[353156987,1739614274693,-425.03,0.00013678,2]
[353156988,1739614274703,-500.0,0.00013678,2]
[353156989,1739614274714,-500.0,0.00013678,2]
[353156990,1739614274723,-590.41,0.00013678,2]
[353156991,1739614274733,-500.0,0.00013678,2]
[353156992,1739614274743,-500.0,0.00013678,2]
[353156993,1739614274753,-209.0,0.0001369,2]
[353156994,1739614274762,-205.0,0.0001369,2]
[353156995,1739614274772,-206.0,0.0001369,2]
[353156996,1739614274782,-20947.33526933,0.00013695,2]
[353156997,1739614275379,-813.61,0.00012793,2]
[353156998,1739614275389,-616.87132636,0.00012875,2]
[353156999,1739614275404,-196.73867364,0.00012875,2]
[353157000,1739614275414,-813.61,0.00012958,2]
[353157001,1739614275423,-500.0,0.00013039,2]
[353157002,1739614275433,-330.76,0.0001304,2]
[353157003,1739614275444,-813.61,0.0001304,2]
[353157004,1739614275453,-500.0,0.00013121,2]
[353157005,1739614275463,-500.0,0.00013122,2]
[353157006,1739614275474,-813.61,0.00013122,2]
[353157007,1739614275487,-500.0,0.00013203,2]
[353157008,1739614275496,-500.0,0.00013203,2]
[353157009,1739614275506,-902.94,0.00013203,2]
[353157010,1739614275515,-500.0,0.00013204,2]
[353157011,1739614275524,-813.61,0.00013204,2]
[353157012,1739614275534,-168.06,0.00013285,2]
[353157013,1739614275543,-500.0,0.00013285,2]
[353157014,1739614275552,-902.94,0.00013285,2]
[353157015,1739614275563,-500.0,0.00013286,2]
[353157016,1739614275571,-813.61,0.00013286,2]
[353157017,1739614275581,-500.0,0.00013367,2]
[353157018,1739614275590,-902.94,0.00013367,2]
[353157019,1739614275600,-207.19,0.00013369,2]
[353157020,1739614275609,-813.61,0.00013369,2]
[353157021,1739614275618,-269.81,0.0001345,2]
[353157022,1739614275627,-902.94,0.0001345,2]
[353157023,1739614275637,-902.94,0.00013532,2]
[353157024,1739614275648,-32457.53574458,0.00013695,2]
[353157025,1739614275657,-1314.866743,0.00013696,2]
[353157026,1739614275666,-500.0,0.00013696,2]
[353157027,1739614275676,-272.78,0.00013696,2]
[353157028,1739614275686,-500.0,0.00013696,2]
[353157029,1739614275696,-500.0,0.00013696,2]
[353157030,1739614275705,-1024.26,0.00013696,2]
[353157031,1739614275714,-500.0,0.00013696,2]
[353157032,1739614275723,-1265.427403,0.00013696,2]
[353157033,1739614275733,-500.0,0.00013696,2]
[353157034,1739614275745,-1365.1,0.00013696,2]
[353157035,1739614275754,-627.95,0.00013696,2]
[353157036,1739614275763,-500.0,0.00013696,2]
[353157037,1739614275772,-507.63,0.00013696,2]
[353157038,1739614275782,-500.0,0.00013696,2]
[353157039,1739614275791,-500.0,0.00013696,2]
[353157040,1739614275800,-500.0,0.00013696,2]
[353157041,1739614275810,-554.84,0.00013696,2]
[353157042,1739614275819,-500.0,0.00013696,2]
[353157043,1739614275828,-1011.9,0.00013696,2]
[353157044,1739614275838,-862.31,0.00013696,2]
[353157045,1739614275847,-500.0,0.00013696,2]
[353157046,1739614275856,-555.17,0.00013696,2]
[353157047,1739614275866,-639.43,0.00013696,2]
[353157048,1739614275875,-500.0,0.00013696,2]
[353157049,1739614275884,-220.0,0.00013696,2]
[353157050,1739614275894,-500.0,0.00013696,2]
[353157051,1739614275903,-602.18,0.00013696,2]
[353157052,1739614275912,-500.0,0.00013696,2]
[353157053,1739614275922,-990.22,0.00013696,2]
[353157054,1739614275934,-500.0,0.00013696,2]
[353157055,1739614275944,-500.0,0.00013696,2]
[353157056,1739614275954,-500.0,0.00013696,2]
[353157057,1739614275964,-528.12,0.00013696,2]
[353157058,1739614275974,-500.0,0.00013696,2]
[353157059,1739614275983,-750.83,0.00013696,2]
[353157060,1739614275993,-588.39,0.00013696,2]
[353157061,1739614276002,-500.0,0.00013696,2]
[353157062,1739614276012,-500.0,0.00013696,2]
[353157063,1739614276024,-500.0,0.00013696,2]
[353157064,1739614276036,-1454.86,0.00013696,2]
[353157065,1739614276045,-500.0,0.00013696,2]
[353157066,1739614276054,-500.0,0.00013696,2]
[353157067,1739614276063,-500.0,0.00013697,2]
[353157068,1739614276073,-500.0,0.00013697,2]
[353157069,1739614276082,-500.0,0.00013697,2]
[353157070,1739614276091,-500.0,0.00013697,2]
[353157071,1739614276099,-500.0,0.00013697,2]
[353157072,1739614276108,-1003.21,0.00013697,2]
[353157073,1739614276117,-500.0,0.00013697,2]
[353157074,1739614276126,-500.0,0.00013697,2]
[353157075,1739614276135,-500.0,0.00013697,2]
[353157076,1739614276144,-636.66,0.00013697,2]
[353157077,1739614276336,-541.55,0.00013697,2]
[353157078,1739614276348,-1044.13,0.00013697,2]
[353157079,1739614276357,-2360.06,0.00013697,2]
[353157080,1739614276366,-560.21,0.00013697,2]
[353157081,1739614276375,-748.23,0.00013697,2]
[353157082,1739614276385,-500.0,0.00013697,2]
[353157083,1739614276397,-510.98,0.00013697,2]
[353157084,1739614276407,-500.0,0.00013697,2]
[353157085,1739614276417,-791.07,0.00013697,2]
[353157086,1739614276428,-500.0,0.00013697,2]
[353157087,1739614276439,-628.58,0.00013697,2]
[353157088,1739614276448,-500.0,0.00013697,2]
[353157089,1739614276458,-861.68,0.00013697,2]
[353157090,1739614276469,-500.0,0.00013697,2]
[353157091,1739614276481,-997.83,0.00013697,2]
[353157092,1739614276491,-655.17,0.00013697,2]
[353157093,1739614276500,-500.0,0.00013697,2]
[353157094,1739614276509,-736.8,0.00013697,2]
[353157095,1739614276519,-500.0,0.00013697,2]
[353157096,1739614276530,-500.0,0.00013697,2]
[353157097,1739614276539,-500.0,0.00013697,2]
[353157098,1739614276549,-500.0,0.00013697,2]
[353157099,1739614276559,-693.79,0.00013697,2]
[353157100,1739614276568,-1153.16,0.00013697,2]
[353157101,1739614276578,-500.0,0.00013697,2]
[353157102,1739614276587,-500.0,0.00013697,2]
[353157103,1739614276596,-500.0,0.00013697,2]
[353157104,1739614276606,-587.83,0.00013697,2]
[353157105,1739614276615,-500.0,0.00013698,3]
[353157106,1739614276624,-500.0,0.00013698,3]
[353157107,1739614276633,-1000.0,0.00013698,2]
[353157108,1739614276642,-524.65503008,0.00013698,2]
[353157109,1739614276652,-500.0,0.00013698,2]
[353157110,1739614276661,-500.0,0.00013698,2]
[353157111,1739614276671,-629.79,0.00013698,2]
[353157112,1739614276680,-1232.06,0.00013698,2]
[353157113,1739614276689,-500.0,0.00013699,2]
[353157114,1739614276698,-500.0,0.00013699,2]
[353157115,1739614276707,-500.0,0.00013699,2]
[353157116,1739614276717,-500.0,0.00013699,2]
[353157117,1739614276726,-500.0,0.00013699,2]
[353157118,1739614276734,-500.0,0.00013699,2]
[353157119,1739614276744,-500.0,0.00013699,2]
[353157120,1739614276753,-5130.05,0.00013699,2]
[353157121,1739614276762,-5130.05,0.00013699,2]
[353157122,1739614276771,-5130.05,0.00013699,2]
[353157123,1739614276780,-5130.05,0.00013699,2]
[353157124,1739614276789,-5130.05,0.00013699,2]
[353157125,1739614276798,-5130.05,0.00013699,2]
[353157126,1739614276807,-5130.05,0.00013699,2]
[353157127,1739614276816,-5130.05,0.00013699,2]
[353157128,1739614276826,-5130.05,0.00013699,2]
[353157129,1739614276835,-5130.05,0.00013699,2]
[353157130,1739614276844,-5130.05,0.00013699,2]
[353157131,1739614276853,-5130.05,0.00013699,2]
[353157132,1739614276862,-5130.05,0.00013699,2]
[353157133,1739614276871,-5130.05,0.00013699,2]
[353157134,1739614276880,-5130.05,0.00013699,2]
[353157135,1739614276890,-5130.05,0.00013699,2]
[353157136,1739614276899,-5130.05,0.00013699,2]
[353157137,1739614276908,-5130.05,0.00013699,2]
[353157138,1739614276917,-5130.05,0.00013699,2]
[353157139,1739614276926,-5130.15144017,0.00013699,2]
[353157140,1739614276935,-4000.0,0.00013699,2]
[353157141,1739614276944,-7374.36,0.00013699,2]
[353157142,1739614276953,-500.0,0.00013699,13]
[353157143,1739614276962,-500.0,0.00013699,13]
[353157144,1739614276971,-500.0,0.00013699,13]
[353157145,1739614276980,-546.0,0.00013699,13]
[353157146,1739614276990,-500.0,0.00013699,2]
[353157147,1739614277001,-318.0,0.00013699,13]
[353157148,1739614277012,-200.0,0.00013699,2]
[353157149,1739614277022,-162.57,0.00013699,2]
[353157150,1739614277031,-2500.0,0.000137,2]
[353157151,1739614277040,-500.0,0.0001376,2]
[353157152,1739614277050,-500.0,0.0001376,2]
[353157153,1739614277060,-500.0,0.0001376,2]
[353157154,1739614277070,-500.0,0.0001376,2]
[353157155,1739614277079,-500.0,0.0001376,2]
[353157156,1739614277090,-500.0,0.0001376,2]
[353157157,1739614277101,-590.41,0.0001376,2]
[353157158,1739614277111,-500.0,0.0001376,2]
[353157159,1739614277121,-500.0,0.0001376,2]
[353157160,1739614277132,-512.778603,0.00013766,2]
[353157161,1739614277143,-1314.866743,0.00013778,2]
[353157162,1739614277154,-303.53435886,0.00013778,2]
[353157163,1739614277163,-500.0,0.00013778,2]
[353157164,1739614277172,-500.0,0.00013778,2]
[353157165,1739614277182,-1024.26,0.00013778,2]
[353157166,1739614277191,-500.0,0.00013778,2]
[353157167,1739614277201,-1265.427403,0.00013778,2]
[353157168,1739614277210,-500.0,0.00013778,2]
[353157169,1739614277219,-1365.1,0.00013778,2]
[353157170,1739614277228,-627.95,0.00013778,2]
[353157171,1739614277238,-500.0,0.00013778,2]
[353157172,1739614277248,-507.63,0.00013778,2]
[353157173,1739614277259,-500.0,0.00013778,2]
[353157174,1739614277270,-500.0,0.00013778,2]
[353157175,1739614277280,-500.0,0.00013778,2]
[353157176,1739614277290,-554.84,0.00013778,2]
[353157177,1739614277301,-500.0,0.00013778,2]
[353157178,1739614277310,-1011.9,0.00013778,2]
[353157179,1739614277320,-862.31,0.00013778,2]
[353157180,1739614277330,-500.0,0.00013778,2]
[353157181,1739614277340,-555.17,0.00013778,2]
[353157182,1739614277350,-639.43,0.00013778,2]
[353157183,1739614277359,-500.0,0.00013778,2]
[353157184,1739614277368,-500.0,0.00013778,2]
[353157185,1739614277377,-602.18,0.00013778,2]
[353157186,1739614277387,-500.0,0.00013778,2]
[353157187,1739614277398,-990.22,0.00013778,2]
[353157188,1739614277409,-500.0,0.00013778,2]
[353157189,1739614277418,-500.0,0.00013778,2]
[353157190,1739614277427,-500.0,0.00013778,2]
[353157191,1739614277436,-528.12,0.00013778,2]
[353157192,1739614277446,-500.0,0.00013778,2]
[353157193,1739614277455,-750.83,0.00013778,2]
[353157194,1739614277464,-588.39,0.00013778,2]
[353157195,1739614277473,-500.0,0.00013778,2]
[353157196,1739614277483,-500.0,0.00013778,2]
[353157197,1739614277493,-524.92,0.00013778,2]
[353157198,1739614277502,-1454.86,0.00013778,2]
[353157199,1739614277512,-500.0,0.00013778,2]
[353157200,1739614277521,-500.0,0.00013778,2]
[353157201,1739614277530,-500.0,0.00013779,2]
[353157202,1739614277539,-500.0,0.00013779,2]
[353157203,1739614277548,-500.0,0.00013779,2]
[353157204,1739614277557,-160.5,0.00013779,2]
[353157205,1739614277567,-500.0,0.00013779,2]
[353157206,1739614277577,-1003.21,0.00013779,2]
[353157207,1739614277586,-500.0,0.00013779,2]
[353157208,1739614277595,-500.0,0.00013779,2]
[353157209,1739614277605,-500.0,0.00013779,2]
[353157210,1739614277617,-636.66,0.00013779,2]
[353157211,1739614277627,-541.55,0.00013779,2]
[353157212,1739614277636,-1044.13,0.00013779,2]
[353157213,1739614277645,-2360.06,0.00013779,2]
[353157214,1739614277654,-560.21,0.00013779,2]
[353157215,1739614277663,-748.23,0.00013779,2]
[353157216,1739614277672,-500.0,0.00013779,2]
[353157217,1739614277681,-510.98,0.00013779,2]
[353157218,1739614277690,-500.0,0.00013779,2]
[353157219,1739614277700,-791.07,0.00013779,2]
[353157220,1739614277713,-500.0,0.00013779,2]
[353157221,1739614277722,-628.58,0.00013779,2]
[353157222,1739614277731,-392.91,0.00013779,2]
[353157223,1739614277740,-861.68,0.00013779,2]
[353157224,1739614277750,-500.0,0.00013779,2]
[353157225,1739614277759,-997.83,0.00013779,2]
[353157226,1739614277768,-655.17,0.00013779,2]
[353157227,1739614277778,-500.0,0.00013779,2]
[353157228,1739614277787,-736.8,0.00013779,2]
[353157229,1739614277796,-500.0,0.00013779,2]
[353157230,1739614277806,-500.0,0.00013779,2]
[353157231,1739614277816,-500.0,0.00013779,2]
[353157232,1739614277825,-500.0,0.00013779,2]
[353157233,1739614277834,-693.79,0.00013779,2]
[353157234,1739614277843,-1153.16,0.00013779,2]
[353157235,1739614277852,-500.0,0.00013779,2]
[353157236,1739614277861,-500.0,0.00013779,2]
[353157237,1739614277870,-500.0,0.00013779,2]
[353157238,1739614277880,-587.83,0.00013779,2]
[353157239,1739614277889,-209.0,0.0001378,2]
[353157240,1739614277898,-205.0,0.0001378,2]
[353157241,1739614277907,-209.0,0.0001378,2]
[353157242,1739614277916,-205.0,0.0001378,2]
[353157243,1739614277925,-209.0,0.0001378,2]
[353157244,1739614277934,-205.0,0.0001378,2]
[353157245,1739614277944,-209.0,0.0001378,2]
[353157246,1739614277953,-205.0,0.0001378,2]
[353157247,1739614277962,-209.0,0.0001378,2]
[353157248,1739614277971,-205.0,0.0001378,2]
[353157249,1739614277980,-206.0,0.0001378,2]
[353157250,1739614277990,-206.0,0.0001378,2]
[353157251,1739614277999,-206.0,0.0001378,2]
[353157252,1739614278009,-206.0,0.0001378,2]
[353157253,1739614278018,-206.0,0.0001378,2]
[353157254,1739614278027,-2500.0,0.000138,2]
[353157255,1739614278036,-153.29170132,0.00013833,2]
[353157256,1739614278046,-163.6449409,0.0001384,2]
[353157257,1739614278055,-280.0,0.0001384,2]
[353157258,1739614278065,-202.0,0.0001384,2]
[353157259,1739614278074,-500.0,0.00013843,2]
[353157260,1739614278085,-574.6,0.00013843,2]
[353157261,1739614278095,-500.0,0.00013843,2]
[353157262,1739614278104,-466.51,0.00013843,2]
[353157263,1739614278113,-500.0,0.00013843,2]
[353157264,1739614278123,-500.0,0.00013843,2]
[353157265,1739614278132,-500.0,0.00013843,2]
[353157266,1739614278142,-590.41,0.00013843,2]
[353157267,1739614278151,-500.0,0.00013843,2]
[353157268,1739614278162,-500.0,0.00013843,2]
[353157269,1739614278172,-1314.866743,0.00013861,2]
[353157270,1739614278182,-500.0,0.00013861,2]
[353157271,1739614278192,-500.0,0.00013861,2]
[353157272,1739614278201,-1024.26,0.00013861,2]
[353157273,1739614278211,-500.0,0.00013861,2]
[353157274,1739614278220,-1265.427403,0.00013861,2]
[353157275,1739614278230,-588.94,0.00013861,2]
[353157276,1739614278240,-1365.1,0.00013861,2]
[353157277,1739614278250,-627.95,0.00013861,2]
[353157278,1739614278260,-500.0,0.00013861,2]
[353157279,1739614278270,-507.63,0.00013861,2]
[353157280,1739614278280,-500.0,0.00013861,2]
[353157281,1739614278289,-500.0,0.00013861,2]
[353157282,1739614278298,-500.0,0.00013861,2]
[353157283,1739614278308,-554.84,0.00013861,2]
[353157284,1739614278318,-500.0,0.00013861,2]
[353157285,1739614278327,-1011.9,0.00013861,2]
[353157286,1739614278336,-862.31,0.00013861,2]
[353157287,1739614278346,-500.0,0.00013861,2]
[353157288,1739614278355,-555.17,0.00013861,2]
[353157289,1739614278365,-639.43,0.00013861,2]
[353157290,1739614278374,-500.0,0.00013861,2]
[353157291,1739614278384,-500.0,0.00013861,2]
[353157292,1739614278394,-602.18,0.00013861,2]
[353157293,1739614278407,-500.0,0.00013861,2]
[353157294,1739614278417,-990.22,0.00013861,2]
[353157295,1739614278426,-500.0,0.00013861,2]
[353157296,1739614278436,-500.0,0.00013861,2]
[353157297,1739614278446,-500.0,0.00013861,2]
[353157298,1739614278456,-528.12,0.00013861,2]
[353157299,1739614278466,-289.17,0.00013861,2]
[353157300,1739614278475,-750.83,0.00013861,2]
[353157301,1739614278485,-588.39,0.00013861,2]
[353157302,1739614278495,-500.0,0.00013861,2]
[353157303,1739614278505,-500.0,0.00013861,2]
[353157304,1739614278514,-1454.86,0.00013861,2]
[353157305,1739614278524,-500.0,0.00013861,2]
[353157306,1739614278534,-500.0,0.00013861,2]
[353157307,1739614278543,-500.0,0.00013862,2]
[353157308,1739614278552,-500.0,0.00013862,2]
[353157309,1739614278562,-500.0,0.00013862,2]
[353157310,1739614278571,-500.0,0.00013862,2]
[353157311,1739614278581,-1003.21,0.00013862,2]
[353157312,1739614278590,-500.0,0.00013862,2]
[353157313,1739614278599,-500.0,0.00013862,2]
[353157314,1739614278608,-500.0,0.00013862,2]
[353157315,1739614278618,-636.66,0.00013862,2]
[353157316,1739614278627,-541.55,0.00013862,2]
[353157317,1739614278636,-1044.13,0.00013862,2]
[353157318,1739614278645,-2360.06,0.00013862,2]
[353157319,1739614278655,-560.21,0.00013862,2]
[353157320,1739614278665,-748.23,0.00013862,2]
[353157321,1739614278675,-500.0,0.00013862,2]
[353157322,1739614278685,-510.98,0.00013862,2]
[353157323,1739614278694,-500.0,0.00013862,2]
[353157324,1739614278704,-791.07,0.00013862,2]
[353157325,1739614278713,-500.0,0.00013862,2]
[353157326,1739614278723,-628.58,0.00013862,2]
[353157327,1739614278733,-861.68,0.00013862,2]
[353157328,1739614278742,-500.0,0.00013862,2]
[353157329,1739614278751,-997.83,0.00013862,2]
[353157330,1739614278761,-655.17,0.00013862,2]
[353157331,1739614278770,-500.0,0.00013862,2]
[353157332,1739614278780,-736.8,0.00013862,2]
[353157333,1739614278790,-500.0,0.00013862,2]
[353157334,1739614278799,-585.02,0.00013862,2]
[353157335,1739614278809,-500.0,0.00013862,2]
[353157336,1739614278820,-500.0,0.00013862,2]
[353157337,1739614278830,-693.79,0.00013862,2]
[353157338,1739614278839,-1153.16,0.00013862,2]
[353157339,1739614278849,-500.0,0.00013862,2]
[353157340,1739614279009,-500.0,0.00013862,2]
[353157341,1739614279019,-500.0,0.00013862,2]
[353157342,1739614279033,-587.83,0.00013862,2]
[353157343,1739614279043,-458.75722813,0.00013867,2]
[353157344,1739614279053,-510.7887144,0.00013899,2]
[353157345,1739614279063,-500.0,0.00013899,2]
[353157346,1739614279072,-1232.06,0.00013899,2]
[353157347,1739614279084,-2500.0,0.000139,2]
[353157348,1739614279094,-80026.76872971,0.000139,10]
[353157349,1739614279104,-500.0,0.00013904,2]
[353157350,1739614279114,-700.0,0.00013904,2]
[353157351,1739614279124,-153.2562512,0.00013907,2]
[353157352,1739614279134,-24900.05607784,0.00013907,2]
[353157353,1739614279144,-160.04496776,0.00013907,2]
[353157354,1739614279154,-4000.0,0.0001392,2]
[353157355,1739614279163,-369.06,0.00013925,2]
[353157356,1739614279173,-500.0,0.00013925,2]
[353157357,1739614279183,-500.0,0.00013925,2]
[353157358,1739614279193,-500.0,0.00013925,2]
[353157359,1739614279202,-500.0,0.00013925,2]
[353157360,1739614279213,-590.41,0.00013925,2]
[353157361,1739614279223,-500.0,0.00013925,2]
[353157362,1739614279234,-500.0,0.00013925,2]
[353157363,1739614279244,-1000.0,0.00013929,2]
[353157364,1739614279255,-512.778603,0.00013932,2]
[353157365,1739614279265,-1314.866743,0.00013943,2]
[353157366,1739614279276,-500.0,0.00013943,2]
[353157367,1739614279286,-500.0,0.00013943,2]
[353157368,1739614279296,-79.63912209,0.00013943,2]
[353157369,1739614279329,-344.81844661,0.00012793,2]
[353157370,1739614279348,-155.18155339,0.00012793,2]
[353157371,1739614279358,-465.67469983,0.00013451,2]
[353157372,1739614279371,-347.93530017,0.00013451,2]
[353157373,1739614279381,-902.94,0.00013614,2]
[353157374,1739614279391,-944.62087791,0.00013943,2]
[353157375,1739614279405,-500.0,0.00013943,2]
[353157376,1739614279415,-145.04375092,0.00013943,2]
[353157377,1739614279427,-374.55,0.00013943,2]